[Event "WYCC U14 Girls 2019"]
[Site "Mumbai"]
[Date "2019.10.07"]
[Round "7.3"]
[White "Roebers, Eline"]
[Black "Ince, Safiye Oyku"]
[Result "1-0"]
[ECO "B42"]
[WhiteElo "2083"]
[BlackElo "1840"]
[Annotator "NA"]
[PlyCount "133"]
[EventDate "2019.10.02"]
[EventType "swiss"]
[EventCountry "IND"]
[SourceTitle "playchess.com"]
[Source "ChessBase"]
[SourceQuality "1"]
[TimeControl "40/5400+30:1800+30"]

1. e4 {[%emt 0:00:00]} c5 {[%emt 0:00:00]} 2. Nf3 {[%emt 0:00:00]} e6 {[%emt 0:00:00]} 3. d4 {[%emt 0:00:00]} cxd4 {[%emt 0:00:00]} 4. Nxd4 {[%emt 0:00:01]} a6 {[%emt 0:00:00]} 5. Bd3 {[%emt 0:00:43]} Nc6 {[%emt 0:01:57]} 6. Nxc6 {[%emt 0:00:20]} bxc6 {[%emt 0:00:30]} 7. Nc3 {[%emt 0:00:42]} e5 {[%emt 0:00:43]} 8. O-O {[%emt 0:02:00]} Nf6 {[%emt 0:00:32] B46: Sicilian: Taimanov: 5 Nc3 a6} 9. Bc4 {[%emt 0:11:01]} (9. f4 Bd6 10. Qf3 Qc7 11. f5 Bc5+ 12. Kh1 h6 13. Bd2 Bb7 14. Rae1 Kf8 15. Na4 Ba7 16. b3 {½-½ (34) Predojevic,B (2490)-Bologan,V (2665) Sarajevo 2004}) 9... Be7 {[%emt 0:07:38]} 10. f4 {[%emt 0:08:44]} Qb6+ {[%emt 0:06:11]} 11. Kh1 {[%emt 0:00:05]} d6 {[%emt 0:00:16]} 12. Qe2 $146 {[%emt 0:06:00]} ({Predecessor:} 12. fxe5 dxe5 13. Bg5 Bg4 14. Qe1 Bh5 {1-0 (27) Loutragotis,D (2194)-Georgantas,A (1776) Nikaia 2017}) 12... Bg4 {[%emt 0:14:49]} 13. Qe3 {[%emt 0:02:38]} Qd4 {[%emt 0:01:57]} 14. Bb3 {[%emt 0:04:17]} Qxe3 {[%emt 0:04:39]} 15. Bxe3 {[%emt 0:00:09]} exf4 {[%emt 0:00:23]} 16. Bxf4 {[%emt 0:00:33]} O-O {[%emt 0:00:10]} 17. Rae1 {[%emt 0:03:35]} Nd7 {[%emt 0:05:10]} 18. Ne2 {[%emt 0:06:51]} Bxe2 {[%emt 0:16:26]} 19. Rxe2 {[%emt 0:00:05]} Ne5 {[%emt 0:00:05]} 20. Rd2 {[%emt 0:03:46]} Ra7 {[%emt 0:01:56]} 21. c4 {[%emt 0:15:45]} c5 {[%emt 0:00:13]} 22. Bxe5 {[%emt 0:00:52]} dxe5 {[%emt 0:00:07]} 23. Rd5 {[%emt 0:00:40]} f6 {[%emt 0:01:46]} 24. Rfd1 {[%emt 0:00:33]} Rb8 {[%emt 0:07:22]} 25. Rd7 {[%emt 0:04:00]} Rbb7 {[%emt 0:01:37]} 26. R7d2 {[%emt 0:02:08]} Rb4 {[%emt 0:02:45]} 27. Rd7 {[%emt 0:00:10]} Rbb7 {[%emt 0:00:09]} 28. Rxb7 {[%emt 0:00:05]} Rxb7 {[%emt 0:00:06]} 29. Rd2 {[%emt 0:00:21]} Kf8 {[%emt 0:02:09]} 30. Ba4 {[%emt 0:01:50]} Rb4 {[%emt 0:00:36]} 31. b3 {[%emt 0:00:57]} Rb6 {[%emt 0:01:24]} 32. Kg1 {[%emt 0:01:05]} Bd6 {[%emt 0:01:23]} 33. Kf2 {[%emt 0:00:17]} Ke7 {[%emt 0:00:05]} 34. Kf3 {[%emt 0:00:58]} Ke6 {[%emt 0:03:50]} 35. h4 {[%emt 0:02:32]} g6 {[%emt 0:04:24]} 36. h5 {[%emt 0:03:25]} g5 {[%emt 0:00:46]} 37. Kg4 {[%emt 0:00:13]} h6 {[%emt 0:01:02]} 38. Rd3 {[%emt 0:02:18]} a5 {[%emt 0:02:09]} 39. Bb5 {[%emt 0:00:34]} f5+ {[%emt 0:05:06]} 40. exf5+ {[%emt 0:01:47]} Kf6 {[%emt 0:00:08] [#]} 41. Bd7 {[%emt 0:35:31]} (41. Kf3 $1 $16) 41... e4 {[%emt 0:32:50]} 42. Re3 {[%emt 0:06:09]} Ke5 {[%emt 0:00:41]} 43. Be6 {[%emt 0:05:00]} Kd4 {[%emt 0:00:49]} 44. Re1 {[%emt 0:00:25]} Bf4 {[%emt 0:05:45]} 45. Bd5 {[%emt 0:02:28]} Be3 $16 {[%emt 0:01:00] [#]} 46. Kh3 {[%emt 0:00:00]} (46. Ba8 $1 $16) 46... a4 {[%emt 0:00:00]} 47. bxa4 {[%emt 0:00:00]} Kd3 48. a5 {[%emt 0:00:00]} Ra6 {[%emt 0:00:00]} 49. Bb7 {[%emt 0:00:23]} Rxa5 {[%emt 0:00:00]} 50. f6 {[%emt 0:00:14]} Rxa2 {[%emt 0:00:00]} 51. Rd1+ {[%emt 0:02:32]} Ke2 {[%emt 0:00:00]} 52. f7 {[%emt 0:00:34]} Kxd1 {[%emt 0:00:00]} 53. f8=Q {[%emt 0:00:15]} Rf2 {[%emt 0:00:00]} 54. Qd6+ {[%emt 0:00:43]} Rd2 {[%emt 0:00:00]} 55. Qe6 {[%emt 0:00:34]} Rd4 {[%emt 0:00:00]} 56. Bxe4 {[%emt 0:00:30]} Kd2 {[%emt 0:00:00]} 57. Kg4 {[%emt 0:00:35]} Kc3 {[%emt 0:00:00]} 58. Kf3 {[%emt 0:00:29]} Bd2 {[%emt 0:00:00]} 59. Bd5 {[%emt 0:00:30]} Bf4 {[%emt 0:00:00]} 60. Kg4 {[%emt 0:00:30]} Bd2+ {[%emt 0:00:00]} 61. Kf5 {[%emt 0:00:32]} g4 {[%emt 0:00:00]} 62. Qe2 {[%emt 0:00:28]} Rf4+ {[%emt 0:00:00]} 63. Ke5 {[%emt 0:00:18]} Rd4 {[%emt 0:00:00]} 64. Kd6 {[%emt 0:00:38]} Kb4 {[%emt 0:00:00]} 65. Qf1 {[%emt 0:00:25]} Bf4+ {[%emt 0:00:00]} 66. Kc6 {[%emt 0:00:10]} Be3 {[%emt 0:00:00]} 67. Qe2 {[%emt 0:00:29]} 1-0

[Event "WYCC U14 Girls 2019"]
[Site "Mumbai"]
[Date "2019.10.07"]
[Round "7.4"]
[White "Divya Deshmukh"]
[Black "Sulyok, Eszter"]
[Result "1-0"]
[ECO "B42"]
[WhiteElo "2358"]
[BlackElo "1893"]
[Annotator "ChessBase"]
[PlyCount "149"]
[EventDate "2019.10.02"]
[EventType "swiss"]
[EventCountry "IND"]
[SourceTitle "playchess.com"]
[Source "ChessBase"]
[SourceQuality "1"]
[TimeControl "40/5400+30:1800+30"]

1. e4 {[%emt 0:00:00]} c5 {[%emt 0:00:00]} 2. Nf3 {[%emt 0:00:00]} e6 {[%emt 0:00:00]} 3. d4 {[%emt 0:00:00]} cxd4 {[%emt 0:00:00]} 4. Nxd4 {[%emt 0:00:00]} a6 {[%emt 0:00:00]} 5. Bd3 {[%emt 0:00:00]} Nf6 {[%emt 0:00:08]} 6. O-O {[%emt 0:00:00]} Qc7 {[%emt 0:00:11]} 7. Qe2 {[%emt 0:00:05]} d6 {[%emt 0:00:06]} 8. c4 {[%emt 0:00:04]} g6 {[%emt 0:00:39]} 9. Nc3 {[%emt 0:00:45]} Bg7 {[%emt 0:00:54]} 10. Be3 {[%emt 0:00:13]} O-O {[%emt 0:00:49]} 11. f4 {[%emt 0:00:24]} Nbd7 {[%emt 0:00:21]} 12. Rac1 {[%emt 0:00:37]} b6 {[%emt 0:01:12]} 13. b4 {[%emt 0:02:19]} Bb7 {[%emt 0:00:55]} 14. Nb3 {[%emt 0:02:51]} Rac8 {[%emt 0:01:18]} 15. g4 {[%emt 0:03:12]} Rfe8 {[%emt 0:16:42]} 16. g5 {[%emt 0:06:27]} Nh5 {[%emt 0:00:06]} 17. Na4 {[%emt 0:12:48]} Qb8 {[%emt 0:14:07]} 18. Qf2 {[%emt 0:20:08]} Ba8 {[%emt 0:21:49]} 19. c5 {[%emt 0:14:56]} dxc5 {[%emt 0:02:45]} 20. Bxa6 {[%emt 0:05:57]} Qa7 {[%emt 0:06:25]} 21. Bxc8 {[%emt 0:05:37]} Rxc8 {[%emt 0:00:14]} 22. Nc3 {[%emt 0:00:35]} cxb4 {[%emt 0:03:55]} 23. Nb5 {[%emt 0:00:50]} Qa6 {[%emt 0:01:44]} 24. Nc7 {[%emt 0:02:19]} Qa7 {[%emt 0:03:51]} 25. Nxa8 {[%emt 0:00:18]} Rxa8 {[%emt 0:00:04]} 26. Rfd1 {[%emt 0:00:01]} Bc3 {[%emt 0:03:50]} 27. Bd2 {[%emt 0:04:40]} Bb2 {[%emt 0:06:29]} 28. Rc2 {[%emt 0:11:58]} Qxa2 {[%emt 0:03:05]} 29. Nc1 {[%emt 0:05:21]} Qa4 {[%emt 0:03:02]} 30. Bxb4 {[%emt 0:00:28]} Bxc1 {[%emt 0:01:56]} 31. Rcxc1 {[%emt 0:00:02]} Qxb4 {[%emt 0:01:27]} 32. Rxd7 {[%emt 0:00:03]} Qxe4 {[%emt 0:00:48]} 33. Rd4 {[%emt 0:00:05]} Qf5 {[%emt 0:00:33]} 34. Qf3 {[%emt 0:03:07]} Rf8 {[%emt 0:00:27]} 35. Qe3 {[%emt 0:00:31]} Ng7 {[%emt 0:03:20]} 36. h3 {[%emt 0:00:21]} b5 {[%emt 0:00:51]} 37. Kh2 {[%emt 0:00:53]} Nh5 {[%emt 0:01:15]} 38. Rc7 {[%emt 0:00:31]} Qb1 {[%emt 0:01:44]} 39. Rcd7 {[%emt 0:00:26]} Qc2+ {[%emt 0:00:12]} 40. Rd2 {[%emt 0:00:33]} Qf5 {[%emt 0:00:04]} 41. R7d4 {[%emt 0:07:45]} Qc5 {[%emt 0:03:04]} 42. Qf3 {[%emt 0:03:30]} b4 {[%emt 0:03:30]} 43. Re4 {[%emt 0:12:19]} Rb8 {[%emt 0:03:43]} 44. Qe2 {[%emt 0:04:57]} Qc7 {[%emt 0:01:31]} 45. Rc4 {[%emt 0:00:15]} Qa5 {[%emt 0:02:21]} 46. Rb2 {[%emt 0:01:53]} b3 {[%emt 0:04:11]} 47. Qe3 {[%emt 0:01:09]} Qd5 {[%emt 0:10:29]} 48. Qc3 {[%emt 0:00:52]} Qf5 {[%emt 0:01:29]} 49. Rxb3 {[%emt 0:00:25]} Rd8 {[%emt 0:00:23]} 50. Rbb4 {[%emt 0:01:32]} Re8 51. Rc8 {[%emt 0:00:55]} Rxc8 {[%emt 0:03:46]} 52. Qxc8+ {[%emt 0:00:01]} Kg7 {[%emt 0:00:50]} 53. Qc3+ {[%emt 0:00:40]} e5 {[%emt 0:00:16]} 54. Qxe5+ {[%emt 0:00:24]} Qxe5 {[%emt 0:00:07]} 55. fxe5 {[%emt 0:00:01]} Kf8 {[%emt 0:00:52]} 56. Rb7 {[%emt 0:00:42]} Nf4 {[%emt 0:00:25]} 57. Kg3 {[%emt 0:00:26]} Ne6 {[%emt 0:00:08]} 58. Kg4 {[%emt 0:00:32]} Kg7 {[%emt 0:00:21]} 59. Ra7 {[%emt 0:00:25]} Kf8 {[%emt 0:00:45]} 60. h4 {[%emt 0:00:17]} Kg7 {[%emt 0:00:32]} 61. Kf3 {[%emt 0:00:18]} Kf8 {[%emt 0:00:04]} 62. Ke4 {[%emt 0:00:09]} Ng7 {[%emt 0:00:22]} 63. Kd5 {[%emt 0:01:41]} Nf5 {[%emt 0:00:59]} 64. e6 {[%emt 0:00:43]} fxe6+ {[%emt 0:00:08]} 65. Kxe6 {[%emt 0:00:02]} Ng7+ {[%emt 0:02:13]} 66. Ke5 {[%emt 0:00:16]} Kg8 {[%emt 0:01:13]} 67. Ra8+ {[%emt 0:00:20]} Kf7 {[%emt 0:00:10]} 68. Rh8 {[%emt 0:00:05]} h6 {[%emt 0:01:21]} 69. Rxh6 {[%emt 0:00:30]} Nf5 {[%emt 0:00:08]} 70. Rh7+ {[%emt 0:00:02]} Kg8 {[%emt 0:00:15]} 71. Ra7 {[%emt 0:00:05]} Nxh4 {[%emt 0:00:23]} 72. Kf6 {[%emt 0:00:04]} Kh8 {[%emt 0:00:44]} 73. Ra4 {[%emt 0:00:23]} Nf5 {[%emt 0:00:35]} 74. Kxg6 {[%emt 0:00:14]} Ne7+ {[%emt 0:00:09]} 75. Kf7 {[%emt 0:00:02]} 1-0

[Event "WYCC U14 Girls 2019"]
[Site "Mumbai"]
[Date "2019.10.07"]
[Round "7.5"]
[White "Hakobyan, Astghik"]
[Black "Obada, Ema"]
[Result "1-0"]
[ECO "B40"]
[WhiteElo "1978"]
[BlackElo "1987"]
[Annotator "NA"]
[PlyCount "112"]
[EventDate "2019.10.02"]
[EventType "swiss"]
[EventCountry "IND"]
[SourceTitle "playchess.com"]
[Source "ChessBase"]
[SourceQuality "1"]
[TimeControl "40/5400+30:1800+30"]

1. e4 c5 2. Nf3 e6 3. d3 Nc6 4. g3 g6 5. Bg2 Bg7 6. O-O Nge7 7. Re1 b6 8. Nbd2 O-O 9. Nf1 {A04: Unusual lines after 1 Nf3 and King's Indian Attack} (9. c3 Bb7 10. Nf1 f5 11. Qe2 Qc7 12. e5 Rae8 13. d4 cxd4 14. cxd4 Nb4 15. Ne3 Ned5 16. Rd1 Ba6 {0-1 (58) Kaatiala,P (1998)-Kanarek,M (2505) Katowice 2017}) 9... d5 10. e5 h6 11. h4 b5 $146 ({Predecessor:} 11... f6 12. exf6 Rxf6 13. Ne3 e5 14. c4 Be6 15. cxd5 Nxd5 16. Nc4 Bg4 17. Re4 {1-0 (44) Araujo Sanchez,J (2110)-Arvelo Leo,G (2241) Santiago de los Caballeros 2017}) 12. Bf4 a5 13. Qd2 Kh7 14. g4 Ba6 15. Ng3 b4 16. Kh2 c4 17. d4 c3 18. bxc3 bxc3 19. Qxc3 Rc8 {[#]} 20. Qd2 $1 a4 21. Bf1 Bxf1 22. Nxf1 Na5 23. Ne3 Nc4 24. Nxc4 Rxc4 25. Rec1 (25. c3 $16) 25... Qc7 26. Ne1 Rc8 27. Rab1 Nc6 28. c3 Na7 29. Qd1 Qe7 30. Ng2 Qa3 31. Rb7 R8c7 32. Rxc7 Rxc7 33. Rc2 Rxc3 34. Rxc3 Qxc3 35. Qxa4 Nc6 36. Be3 f6 37. f4 fxe5 38. fxe5 Nb4 39. h5 gxh5 40. gxh5 Nc2 {[#]} 41. Qb3 $1 Qxb3 $16 42. axb3 Bf8 43. Bf2 Kg8 44. Nf4 Kf7 45. Nd3 Ke8 46. Kg3 Kd7 47. Kf3 Kc6 48. Ke2 Na1 49. b4 Nc2 50. Nc5 Nxb4 51. Nxe6 Be7 52. Be3 Kd7 53. Ng7 Nc2 54. Kd3 Nxe3 55. Kxe3 Bg5+ 56. Kf3 Ke7 1-0

[Event "WYCC U14 Girls 2019"]
[Site "Mumbai"]
[Date "2019.10.07"]
[Round "7.6"]
[White "De Rycke, Tyani"]
[Black "Allahverdiyeva, Ayan"]
[Result "0-1"]
[ECO "B26"]
[WhiteElo "1891"]
[BlackElo "2160"]
[Annotator "ChessBase"]
[PlyCount "142"]
[EventDate "2019.10.02"]
[EventType "swiss"]
[EventCountry "IND"]
[SourceTitle "playchess.com"]
[Source "ChessBase"]
[SourceQuality "1"]
[TimeControl "40/5400+30:1800+30"]

1. e4 {[%emt 0:00:00]} c5 {[%emt 0:00:47]} 2. Nc3 {[%emt 0:00:00]} Nc6 {[%emt 0:00:26]} 3. g3 {[%emt 0:00:00]} g6 {[%emt 0:00:31]} 4. Bg2 {[%emt 0:00:00]} Bg7 {[%emt 0:00:05]} 5. d3 {[%emt 0:00:06]} d6 {[%emt 0:00:20]} 6. Be3 {[%emt 0:00:20]} e5 {[%emt 0:00:46]} 7. Qd2 {[%emt 0:00:25]} Be6 {[%emt 0:05:44]} 8. f4 {[%emt 0:00:20]} Nge7 {[%emt 0:00:30]} 9. Nf3 {[%emt 0:00:39]} Nd4 {[%emt 0:00:22]} 10. Ng5 {[%emt 0:00:33]} Bd7 {[%emt 0:03:18]} 11. O-O {[%emt 0:02:46]} O-O {[%emt 0:02:11]} 12. fxe5 {[%emt 0:10:49]} dxe5 {[%emt 0:04:21]} 13. Nd5 {[%emt 0:03:33]} Nxd5 {[%emt 0:05:36]} 14. exd5 {[%emt 0:00:10]} Bh6 {[%emt 0:00:30]} 15. Ne4 {[%emt 0:19:32]} Bxe3+ {[%emt 0:02:01]} 16. Qxe3 {[%emt 0:00:07]} f5 {[%emt 0:01:49]} 17. Nxc5 {[%emt 0:05:39]} Nxc2 {[%emt 0:00:22]} 18. Qxe5 {[%emt 0:02:07]} Nxa1 {[%emt 0:00:30]} 19. Rxa1 {[%emt 0:06:40]} Re8 {[%emt 0:10:13]} 20. Qd6 {[%emt 0:07:35]} Bc8 {[%emt 0:00:00]} 21. Qe5 {[%emt 0:00:00]} Bd7 {[%emt 0:01:00]} 22. Qd6 {[%emt 0:01:00]} Bc8 {[%emt 0:33:26]} 23. Qxd8 {[%emt 0:12:29]} Rxd8 {[%emt 0:00:05]} 24. d4 {[%emt 0:01:25]} b6 {[%emt 0:04:11]} 25. Ne6 {[%emt 0:00:54]} Rd7 {[%emt 0:02:30]} 26. a4 {[%emt 0:15:44]} a5 {[%emt 0:03:36]} 27. Rb1 {[%emt 0:03:44]} Bb7 {[%emt 0:01:12]} 28. b4 {[%emt 0:00:15]} axb4 {[%emt 0:05:16]} 29. Rxb4 {[%emt 0:00:08]} Rc8 {[%emt 0:00:51]} 30. Rxb6 {[%emt 0:01:28]} Rc1+ {[%emt 0:00:04]} 31. Kf2 {[%emt 0:00:22]} Rc2+ {[%emt 0:00:04]} 32. Kg1 {[%emt 0:00:17]} Bxd5 {[%emt 0:00:13]} 33. Rb8+ {[%emt 0:01:46]} Kf7 {[%emt 0:00:41]} 34. Bxd5 {[%emt 0:02:23]} Rxd5 {[%emt 0:00:05]} 35. Ng5+ {[%emt 0:00:21]} Ke7 {[%emt 0:00:43]} 36. Rb7+ {[%emt 0:01:14]} Kd6 {[%emt 0:00:15]} 37. Rb6+ {[%emt 0:01:06]} Kd7 {[%emt 0:02:42]} 38. Nf3 {[%emt 0:00:57]} Ra2 {[%emt 0:04:09]} 39. Ra6 {[%emt 0:01:08]} g5 {[%emt 0:00:48]} 40. Ra7+ {[%emt 0:00:44]} Kc8 {[%emt 0:00:13]} 41. Rxh7 {[%emt 0:31:03]} g4 {[%emt 0:30:07]} 42. Rh8+ {[%emt 0:00:19]} Kc7 43. Rh7+ {[%emt 0:00:00]} Kb6 {[%emt 0:00:00]} 44. Rh6+ {[%emt 0:00:00]} Ka5 {[%emt 0:00:00]} 45. Ne5 {[%emt 0:00:00]} Rxa4 {[%emt 0:00:00]} 46. Rh8 {[%emt 0:00:00]} Kb6 {[%emt 0:00:00]} 47. Rh6+ {[%emt 0:00:00]} Kb5 {[%emt 0:00:00]} 48. Nc6 {[%emt 0:00:00]} Ra2 {[%emt 0:00:00]} 49. Rf6 {[%emt 0:00:00]} Kc4 {[%emt 0:00:00]} 50. Re6 {[%emt 0:00:00]} Rb5 {[%emt 0:00:13]} 51. Re1 {[%emt 0:00:00]} Rbb2 {[%emt 0:00:24]} 52. Rc1+ {[%emt 0:00:00]} Kb5 {[%emt 0:03:15]} 53. d5 {[%emt 0:00:29]} Rg2+ {[%emt 0:00:33]} 54. Kf1 {[%emt 0:00:14]} Rxh2 {[%emt 0:00:12]} 55. Nd4+ {[%emt 0:00:52]} Kb6 {[%emt 0:00:22]} 56. Rb1+ {[%emt 0:04:05]} Kc5 {[%emt 0:03:15]} 57. Ne6+ {[%emt 0:00:27]} Kd6 {[%emt 0:01:20]} 58. Kg1 {[%emt 0:01:04]} Rag2+ {[%emt 0:00:04]} 59. Kf1 {[%emt 0:00:16]} Rxg3 {[%emt 0:00:14]} 60. Rb5 {[%emt 0:01:00]} Ra3 {[%emt 0:00:13]} 61. Kg1 {[%emt 0:00:23]} Rc2 {[%emt 0:00:08]} 62. Rb1 {[%emt 0:00:18]} Kxd5 {[%emt 0:00:14]} 63. Nf4+ {[%emt 0:00:42]} Ke4 {[%emt 0:00:08]} 64. Ne6 {[%emt 0:00:23]} Rg3+ {[%emt 0:00:43]} 65. Kf1 {[%emt 0:00:37]} Rf3+ {[%emt 0:00:57]} 66. Kg1 {[%emt 0:00:17]} Rff2 {[%emt 0:00:08]} 67. Re1+ {[%emt 0:00:56]} Rce2 {[%emt 0:00:25]} 68. Rd1 {[%emt 0:00:58]} Rg2+ {[%emt 0:00:16]} 69. Kf1 {[%emt 0:00:39]} Ref2+ {[%emt 0:00:45]} 70. Ke1 {[%emt 0:00:12]} Ke3 {[%emt 0:00:22]} 71. Ra1 {[%emt 0:00:54]} Rg1# {[%emt 0:00:04]} 0-1

[Event "WYCC U14 Girls 2019"]
[Site "Mumbai"]
[Date "2019.10.07"]
[Round "7.7"]
[White "Cai, Boheng"]
[Black "Wikar, Martyna"]
[Result "1/2-1/2"]
[ECO "E67"]
[WhiteElo "1853"]
[BlackElo "1969"]
[Annotator "NA"]
[PlyCount "95"]
[EventDate "2019.10.02"]
[EventType "swiss"]
[EventCountry "IND"]
[SourceTitle "playchess.com"]
[Source "ChessBase"]
[SourceQuality "1"]
[TimeControl "40/5400+30:1800+30"]

1. d4 Nf6 2. c4 d6 3. Nf3 Nbd7 4. g3 g6 5. Bg2 Bg7 6. O-O O-O 7. Nc3 e5 8. d5 a5 9. e4 Nc5 10. Qc2 Ne8 {E67: King's Indian: Fianchetto: 6...Nbd7} (10... Nh5 11. Be3 f5 12. exf5 Bxf5 13. Qd2 b6 14. Ng5 Nf6 15. Bxc5 bxc5 16. Bh3 Bxh3 17. Nxh3 Qd7 18. Kg2 Qg4 19. f4 Nh5 20. Rae1 exf4 21. Nxf4 Bh6 22. Nce2 Rae8 23. Qxa5 Bxf4 24. Nxf4 Rxe1 {0-1 (24) Golubov,S (2481)-Gupta,A (2637) Abu Dhabi 2016}) 11. Ne1 f5 12. Nd3 Nxd3 13. Qxd3 f4 14. f3 g5 15. g4 $146 ({Predecessor:} 15. Bd2 Nf6 16. Nb5 Rf7 17. Rf2 fxg3 18. hxg3 {1-0 (56) Kulakli,A-Zeytinoglu,N (1928) Kemer 2011}) 15... Qf6 16. h3 Kf7 17. Bd2 h5 18. Kf2 Qg6 19. Ke2 Bd7 20. b3 Rh8 21. Rh1 Bf6 22. a3 Be7 23. Raf1 Qg8 24. Nd1 Nf6 25. Nf2 Qb8 26. a4 Qa7 27. Bc1 Qb6 28. Qc3 c6 29. dxc6 bxc6 30. Ba3 Rab8 31. Rb1 c5 32. Rhd1 Qc7 33. Qd3 Bc6 $17 34. Rd2 Qb7 35. Rbb2 Ne8 36. Qc3 Qc7 37. Ra2 Ng7 38. Bb2 Ne6 39. Qc2 Qb6 40. Rd3 Ba8 41. Ra3 Qb4 42. Ra1 Nd4+ 43. Bxd4 cxd4 44. Rb1 Rhc8 45. Rdd1 hxg4 46. fxg4 Qb6 47. Rdc1 Qd8 48. Qd2 1/2-1/2

[Event "WYCC U14 Girls 2019"]
[Site "Mumbai"]
[Date "2019.10.07"]
[Round "7.8"]
[White "Ghomi, Parnian"]
[Black "Chinnam Vyshnavi"]
[Result "1-0"]
[ECO "A08"]
[WhiteElo "1948"]
[BlackElo "1745"]
[Annotator "NA"]
[PlyCount "65"]
[EventDate "2019.10.02"]
[EventType "swiss"]
[EventCountry "IND"]
[SourceTitle "playchess.com"]
[Source "ChessBase"]
[SourceQuality "1"]
[TimeControl "40/5400+30:1800+30"]

1. e4 {[%emt 0:00:00]} e6 {[%emt 0:00:00]} 2. d3 {[%emt 0:00:00]} d5 {[%emt 0:00:10]} 3. Nd2 {[%emt 0:00:00]} Nf6 {[%emt 0:01:19]} 4. Ngf3 {[%emt 0:00:00]} c5 {[%emt 0:01:08]} 5. g3 {[%emt 0:00:00]} Nc6 {[%emt 0:00:17]} 6. Bg2 {[%emt 0:00:07]} Be7 {[%emt 0:00:17]} 7. O-O {[%emt 0:00:10]} O-O {[%emt 0:00:23]} 8. Re1 {[%emt 0:00:37]} b5 {[%emt 0:00:24]} 9. e5 {[%emt 0:01:50]} Nd7 {[%emt 0:00:38]} 10. Nf1 {[%emt 0:00:36]} a5 {[%emt 0:01:05]} 11. h4 {[%emt 0:01:16]} Ba6 {[%emt 0:04:42]} 12. N1h2 {[%emt 0:03:23]} Rc8 {[%emt 0:15:43]} 13. h5 {[%emt 0:04:30]} d4 {[%emt 0:04:12]} (13... h6 $15) 14. Ng4 {[%emt 0:04:23]} c4 {[%emt 0:03:01]} ({Black should try} 14... a4 $14) 15. a3 {[%emt 0:10:52]} Nc5 {[%emt 0:05:14]} 16. Bf1 {[%emt 0:10:46]} Rc7 {[%emt 0:08:20]} 17. Bf4 {[%emt 0:02:56]} Rd7 {[%emt 0:05:50]} (17... cxd3 $11 {remains equal.} 18. Bxd3 h6) 18. Qd2 {[%emt 0:28:24]} Na4 $18 {[%emt 0:12:59]} (18... h6 $11) 19. h6 {[%emt 0:07:23]} c3 {[%emt 0:07:25]} 20. bxc3 {[%emt 0:00:09]} dxc3 {[%emt 0:00:06]} 21. Qc1 {[%emt 0:00:17]} Nd4 {[%emt 0:05:55]} 22. Nxd4 {[%emt 0:00:58]} Rxd4 {[%emt 0:00:11]} 23. hxg7 {[%emt 0:00:15]} Re8 {[%emt 0:00:57]} 24. Qd1 {[%emt 0:02:05]} Kxg7 {[%emt 0:03:43]} 25. Be3 {[%emt 0:01:36]} Rd7 {[%emt 0:02:05]} 26. Bg2 {[%emt 0:03:44]} Bb7 {[%emt 0:02:12]} 27. Bxb7 {[%emt 0:00:27]} Rxb7 {[%emt 0:00:08]} 28. Qf3 {[%emt 0:00:30]} Qd5 {[%emt 0:01:32]} 29. Qf4 {[%emt 0:00:20]} Rg8 {[%emt 0:03:07]} 30. Nf6 {[%emt 0:00:55]} Bxf6 {[%emt 0:04:03]} 31. Qh6+ {[%emt 0:00:05]} Kh8 {[%emt 0:00:22]} 32. Qxf6+ {[%emt 0:00:03]} Rg7 {[%emt 0:00:45]} 33. Bh6 {[%emt 0:00:05]} 1-0

[Event "WYCC U14 Girls 2019"]
[Site "Mumbai"]
[Date "2019.10.07"]
[Round "7.9"]
[White "Ishvi Aggarwal"]
[Black "Velpula Sarayu"]
[Result "0-1"]
[ECO "E62"]
[WhiteElo "1935"]
[BlackElo "1717"]
[Annotator "NA"]
[PlyCount "112"]
[EventDate "2019.10.02"]
[EventType "swiss"]
[EventCountry "IND"]
[SourceTitle "playchess.com"]
[Source "ChessBase"]
[SourceQuality "1"]
[TimeControl "40/5400+30:1800+30"]

1. d4 {[%emt 0:00:00]} Nf6 {[%emt 0:00:14]} 2. c4 {[%emt 0:00:00]} g6 {[%emt 0:00:26]} 3. g3 {[%emt 0:00:00]} Bg7 {[%emt 0:00:40]} 4. Bg2 {[%emt 0:00:00]} O-O {[%emt 0:00:28]} 5. Nc3 {[%emt 0:00:00]} d6 {[%emt 0:00:44]} 6. Nf3 {[%emt 0:00:00]} c6 {[%emt 0:00:48]} 7. O-O {[%emt 0:00:00]} Qa5 {[%emt 0:01:03]} 8. e4 {[%emt 0:00:01]} Bg4 {[%emt 0:01:26]} 9. Be3 {[%emt 0:02:25] E62: King's Indian: Fianchetto: 6...c6 and Panno Variation (6...Nc6) without ...a6} (9. h3 Bxf3 10. Bxf3 Nbd7 11. Be3 c5 12. Rc1 cxd4 13. Bxd4 Bh6 14. Bxf6 Nxf6 15. Rc2 Rac8 16. b3 Rfe8 17. Qe2 Nd7 18. e5 Nxe5 19. Bxb7 Rc7 {½-½ (122) Cordova,E (2597)-Gabuzyan,H (2605) Burlingame 2019}) 9... Qh5 {[%emt 0:01:29]} 10. Bf4 {[%emt 0:07:28]} e5 {[%emt 0:07:34]} 11. Be3 $146 {[%emt 0:10:01]} ({Predecessor:} 11. dxe5 dxe5 12. Bc1 Na6 13. Qe2 h6 14. Qe3 Be6 15. b3 Nb4 16. Qe2 Rfd8 {½-½ (41) Hoffmann,H (2195)-Gerstenberger,H (2215) Wuerttemberg 1996}) 11... h6 {[%emt 0:15:02]} 12. Qe2 {[%emt 0:11:35]} Nh7 {[%emt 0:06:56]} 13. dxe5 {[%emt 0:04:15]} dxe5 {[%emt 0:00:15]} 14. c5 {[%emt 0:16:40]} Kh8 {[%emt 0:02:12]} 15. Bc1 {[%emt 0:10:22]} Nd7 {[%emt 0:09:30]} 16. Nd1 {[%emt 0:10:40]} Nxc5 {[%emt 0:16:11]} 17. Ne3 {[%emt 0:00:55]} Bh3 {[%emt 0:06:04]} 18. Qc4 {[%emt 0:03:57]} Ne6 {[%emt 0:02:06]} 19. b3 {[%emt 0:06:35]} Bxg2 {[%emt 0:06:31]} 20. Kxg2 {[%emt 0:00:02]} Nf4+ {[%emt 0:00:39]} 21. gxf4 {[%emt 0:01:39]} exf4 {[%emt 0:00:04]} 22. Rb1 {[%emt 0:04:07]} fxe3 {[%emt 0:00:09]} 23. fxe3 {[%emt 0:00:02]} Qg4+ {[%emt 0:00:54]} 24. Kh1 {[%emt 0:01:12]} Rae8 {[%emt 0:00:45]} 25. Ba3 {[%emt 0:01:08]} Rg8 {[%emt 0:01:16]} 26. e5 {[%emt 0:03:29]} Qxc4 {[%emt 0:07:39]} 27. bxc4 {[%emt 0:00:01]} b6 {[%emt 0:00:06]} 28. c5 {[%emt 0:01:06]} Bf8 {[%emt 0:00:33]} 29. Nd4 {[%emt 0:01:08]} Rxe5 {[%emt 0:03:11]} 30. Nxc6 {[%emt 0:01:28]} Rxe3 {[%emt 0:00:04]} 31. Bb2+ {[%emt 0:02:21]} f6 {[%emt 0:01:43]} 32. cxb6 {[%emt 0:00:17]} axb6 {[%emt 0:00:05]} 33. Bd4 Ra3 {[%emt 0:02:24]} 34. Rxb6 {[%emt 0:02:04]} Rxa2 {[%emt 0:00:17]} 35. Bxf6+ {[%emt 0:00:47]} Nxf6 {[%emt 0:00:04]} 36. Rxf6 {[%emt 0:00:03]} Bc5 {[%emt 0:01:02]} 37. Rb7 {[%emt 0:00:32]} Re8 {[%emt 0:00:52]} 38. Rb8 {[%emt 0:00:57]} Rxb8 {[%emt 0:01:28]} 39. Nxb8 {[%emt 0:00:01]} Kg7 {[%emt 0:00:31]} 40. Rc6 {[%emt 0:00:12]} Be3 {[%emt 0:00:40]} 41. Rc7+ {[%emt 0:31:48]} Kf6 $17 {[%emt 0:31:24]} 42. Nd7+ {[%emt 0:00:00]} Kf5 {[%emt 0:00:00]} 43. Rc6 {[%emt 0:00:00]} Bf4 {[%emt 0:00:00]} 44. Rf6+ {[%emt 0:00:00]} Kg4 {[%emt 0:00:00]} 45. Rxg6+ {[%emt 0:00:00]} Kf3 {[%emt 0:00:00]} 46. Nb6 {[%emt 0:00:00]} Rxh2+ {[%emt 0:00:00]} 47. Kg1 {[%emt 0:00:00]} Rb2 {[%emt 0:00:00]} 48. Kh1 {[%emt 0:00:00]} Rb1+ {[%emt 0:00:00]} 49. Rg1 {[%emt 0:00:00]} Rxb6 {[%emt 0:00:00]} 50. Rf1+ {[%emt 0:00:00]} Kg4 {[%emt 0:00:00]} 51. Kg2 {[%emt 0:00:00]} h5 {[%emt 0:00:00]} 52. Rf2 {[%emt 0:00:00]} h4 {[%emt 0:00:00]} 53. Rf1 {[%emt 0:00:59]} Rb2+ {[%emt 0:00:00]} 54. Kg1 {[%emt 0:01:11]} Be3+ {[%emt 0:00:00]} 55. Kh1 {[%emt 0:00:11]} Re2 {[%emt 0:00:00]} 56. Ra1 {[%emt 0:00:46]} Kh3 {[%emt 0:00:00]} 0-1